[Event "*** SCC Grand Prix: Titled Tuesday Blitz"]
[Site "Chess.com"]
[Date "2020.06.02"]
[Round "8"]
[White "serhanberat_ozdemir"]
[Black "Justinz"]
[Result "1/2-1/2"]
[WhiteElo "2510"]
[BlackElo "2329"]
[TimeControl "180+1"]
[EndTime "11:37:46 PDT"]
[Termination "Game drawn by repetition"]

1. e4 {[%clk 0:03:00.9]} 1... c5 {[%clk 0:02:59.4]} 2. Nf3 {[%clk 0:03:00.8]}
2... d6 {[%clk 0:02:59.8]} 3. d4 {[%clk 0:03:01]} 3... cxd4 {[%clk 0:03:00.7]}
4. Nxd4 {[%clk 0:03:01.9]} 4... Nf6 {[%clk 0:03:01.2]} 5. Nc3 {[%clk 0:03:02.5]}
5... a6 {[%clk 0:03:01.8]} 6. f3 {[%clk 0:03:02.9]} 6... e5 {[%clk 0:03:01.7]}
7. Nb3 {[%clk 0:03:03.4]} 7... Be7 {[%clk 0:03:00.9]} 8. Be3 {[%clk 0:03:03.9]}
8... Be6 {[%clk 0:03:00.3]} 9. Qd2 {[%clk 0:03:04.4]} 9... h5 {[%clk 0:02:59.8]}
10. Be2 {[%clk 0:03:04]} 10... Nbd7 {[%clk 0:02:59.8]} 11. Nd5 {[%clk
0:03:03.9]} 11... Nxd5 {[%clk 0:02:58.6]} 12. exd5 {[%clk 0:03:04.8]} 12... Bf5
{[%clk 0:02:58.9]} 13. Na5 {[%clk 0:03:02.6]} 13... Qc7 {[%clk 0:02:57.6]} 14.
c4 {[%clk 0:03:02.3]} 14... O-O {[%clk 0:02:51.3]} 15. O-O {[%clk 0:03:01.2]}
15... Bg6 {[%clk 0:02:48.4]} 16. Rac1 {[%clk 0:02:57.8]} 16... f5 {[%clk
0:02:48.1]} 17. b4 {[%clk 0:02:41.3]} 17... Rac8 {[%clk 0:02:43.1]} 18. Kh1
{[%clk 0:02:34.7]} 18... f4 {[%clk 0:02:14.9]} 19. Bg1 {[%clk 0:02:27.6]} 19...
b6 {[%clk 0:01:48.4]} 20. Nc6 {[%clk 0:02:25.6]} 20... Bg5 {[%clk 0:01:47.9]}
21. Bd3 {[%clk 0:02:06.8]} 21... Bxd3 {[%clk 0:01:44.1]} 22. Qxd3 {[%clk
0:02:07.7]} 22... Nb8 {[%clk 0:01:34.9]} 23. Nxb8 {[%clk 0:02:03.5]} 23... Rxb8
{[%clk 0:01:30.9]} 24. c5 {[%clk 0:01:56.2]} 24... bxc5 {[%clk 0:01:29.4]} 25.
bxc5 {[%clk 0:01:57.1]} 25... dxc5 {[%clk 0:01:28.2]} 26. Rxc5 {[%clk
0:01:46.7]} 26... Qd7 {[%clk 0:01:27.7]} 27. Rfc1 {[%clk 0:01:42.5]} 27... Rbc8
{[%clk 0:01:26.8]} 28. Qg6 {[%clk 0:01:35.3]} 28... Rxc5 {[%clk 0:01:23.8]} 29.
Bxc5 {[%clk 0:01:29.5]} 29... Be7 {[%clk 0:01:21.5]} 30. Bxe7 {[%clk 0:01:28.9]}
30... Qxe7 {[%clk 0:01:20.9]} 31. d6 {[%clk 0:01:28.8]} 31... Qf7 {[%clk
0:01:14.6]} 32. Qe4 {[%clk 0:01:12.9]} 32... Qe6 {[%clk 0:01:10.4]} 33. Rc6
{[%clk 0:00:27.1]} 33... Qxa2 {[%clk 0:01:02]} 34. h4 {[%clk 0:00:26.8]} 34...
Qa1+ {[%clk 0:00:57.3]} 35. Kh2 {[%clk 0:00:25.8]} 35... Rd8 {[%clk 0:00:52.6]}
36. Qd5+ {[%clk 0:00:16.3]} 36... Kh8 {[%clk 0:00:49.9]} 37. Qf7 {[%clk
0:00:03.4]} 37... Qe1 {[%clk 0:00:42.1]} 38. Qxh5+ {[%clk 0:00:03.6]} 38... Kg8
{[%clk 0:00:42.2]} 39. Qg5 {[%clk 0:00:04.3]} 39... Qg3+ {[%clk 0:00:28.5]} 40.
Qxg3 {[%clk 0:00:03.2]} 40... fxg3+ {[%clk 0:00:29.4]} 41. Kxg3 {[%clk
0:00:04.1]} 41... a5 {[%clk 0:00:30.3]} 42. Kf2 {[%clk 0:00:02.9]} 42... a4
{[%clk 0:00:30.3]} 43. Ke3 {[%clk 0:00:02.8]} 43... a3 {[%clk 0:00:30.4]} 44.
Ra6 {[%clk 0:00:02.7]} 44... a2 {[%clk 0:00:30.4]} 45. Ke4 {[%clk 0:00:02.4]}
45... Rxd6 {[%clk 0:00:28.7]} 46. Ra8+ {[%clk 0:00:01.7]} 46... Kf7 {[%clk
0:00:28.2]} 47. Rxa2 {[%clk 0:00:02.6]} 47... Rd4+ {[%clk 0:00:27.8]} 48. Kxe5
{[%clk 0:00:02.2]} 48... Rxh4 {[%clk 0:00:27.8]} 49. g4 {[%clk 0:00:02.9]} 49...
Rh1 {[%clk 0:00:26.2]} 50. Kf5 {[%clk 0:00:02.7]} 50... Rb1 {[%clk 0:00:25.4]}
51. Ra7+ {[%clk 0:00:02.2]} 51... Kg8 {[%clk 0:00:25.4]} 52. Kg5 {[%clk
0:00:02.7]} 52... Rb5+ {[%clk 0:00:24.7]} 53. Kh4 {[%clk 0:00:02.7]} 53... Kh7
{[%clk 0:00:24.8]} 54. f4 {[%clk 0:00:03.1]} 54... Kg6 {[%clk 0:00:21.4]} 55.
Ra6+ {[%clk 0:00:03.4]} 55... Kh7 {[%clk 0:00:21.2]} 56. f5 {[%clk 0:00:03.8]}
56... Rb1 {[%clk 0:00:14.5]} 57. Ra7 {[%clk 0:00:03.6]} 57... Kg8 {[%clk
0:00:12.3]} 58. Kg5 {[%clk 0:00:03.4]} 58... Rb6 {[%clk 0:00:12.1]} 59. Rd7
{[%clk 0:00:01.8]} 59... Kf8 {[%clk 0:00:11.6]} 60. Ra7 {[%clk 0:00:02.2]} 60...
Kg8 {[%clk 0:00:11.3]} 61. Kh5 {[%clk 0:00:02.8]} 61... Rh6+ {[%clk 0:00:10.3]}
62. Kg5 {[%clk 0:00:03]} 62... Rb6 {[%clk 0:00:10.8]} 1/2-1/2

[Event "*** SCC Grand Prix: Titled Tuesday Blitz"]
[Site "Chess.com"]
[Date "2020.06.02"]
[Round "8"]
[White "boasovietica"]
[Black "Khayala13"]
[Result "1-0"]
[WhiteElo "2433"]
[BlackElo "2260"]
[TimeControl "180+1"]
[EndTime "11:37:47 PDT"]
[Termination "boasovietica won on time"]

1. e4 {[%clk 0:03:00.9]} 1... c6 {[%clk 0:02:59]} 2. d4 {[%clk 0:03:00.3]} 2...
d5 {[%clk 0:02:59.3]} 3. exd5 {[%clk 0:03:00.6]} 3... cxd5 {[%clk 0:02:59.2]} 4.
Bd3 {[%clk 0:03:00.9]} 4... Nf6 {[%clk 0:02:59]} 5. Ne2 {[%clk 0:02:59.7]} 5...
Nc6 {[%clk 0:02:58.3]} 6. c3 {[%clk 0:02:59.5]} 6... Bg4 {[%clk 0:02:58.6]} 7.
O-O {[%clk 0:02:59]} 7... e6 {[%clk 0:02:58.1]} 8. Qe1 {[%clk 0:02:58.2]} 8...
Bd6 {[%clk 0:02:55.9]} 9. f3 {[%clk 0:02:57.4]} 9... Bh5 {[%clk 0:02:55]} 10.
Qh4 {[%clk 0:02:57.5]} 10... Bg6 {[%clk 0:02:50.3]} 11. Bxg6 {[%clk 0:02:56.8]}
11... fxg6 {[%clk 0:02:51.2]} 12. Bf4 {[%clk 0:02:55.2]} 12... O-O {[%clk
0:02:50.6]} 13. Bxd6 {[%clk 0:02:48.9]} 13... Qxd6 {[%clk 0:02:51.5]} 14. Qg3
{[%clk 0:02:48.6]} 14... e5 {[%clk 0:02:46.5]} 15. dxe5 {[%clk 0:02:45.7]} 15...
Nxe5 {[%clk 0:02:47.4]} 16. Nd4 {[%clk 0:02:44.9]} 16... Rae8 {[%clk 0:02:43]}
17. Nd2 {[%clk 0:02:36.5]} 17... Nh5 {[%clk 0:02:41]} 18. Qf2 {[%clk 0:01:54.9]}
18... Nd3 {[%clk 0:02:38.8]} 19. Qh4 {[%clk 0:01:45.5]} 19... Rf4 {[%clk
0:02:33.2]} 20. Qh3 {[%clk 0:01:44.6]} 20... Qb6 {[%clk 0:02:08.8]} 21. Nb3
{[%clk 0:01:30.6]} 21... Nxb2 {[%clk 0:01:47.2]} 22. Qd7 {[%clk 0:01:29.6]}
22... Ref8 {[%clk 0:01:30.1]} 23. Qxd5+ {[%clk 0:01:26.8]} 23... Kh8 {[%clk
0:01:28.9]} 24. Rab1 {[%clk 0:01:20.4]} 24... Na4 {[%clk 0:01:21.1]} 25. Rbc1
{[%clk 0:00:52]} 25... R4f5 {[%clk 0:01:09.8]} 26. Qc4 {[%clk 0:00:45]} 26...
Nc5 {[%clk 0:01:06]} 27. Kh1 {[%clk 0:00:39.3]} 27... Nxb3 {[%clk 0:00:59]} 28.
axb3 {[%clk 0:00:36.4]} 28... R5f6 {[%clk 0:00:55.9]} 29. Rce1 {[%clk
0:00:34.4]} 29... Nf4 {[%clk 0:00:55.4]} 30. Re4 {[%clk 0:00:32.4]} 30... g5
{[%clk 0:00:52.9]} 31. Rfe1 {[%clk 0:00:32]} 31... h5 {[%clk 0:00:47.8]} 32. b4
{[%clk 0:00:27.5]} 32... h4 {[%clk 0:00:46.6]} 33. Re5 {[%clk 0:00:25.6]} 33...
h3 {[%clk 0:00:40.4]} 34. g3 {[%clk 0:00:23.5]} 34... Ng2 {[%clk 0:00:37.1]} 35.
Rf1 {[%clk 0:00:22]} 35... g4 {[%clk 0:00:30.8]} 36. Rh5+ {[%clk 0:00:18.2]}
36... Rh6 {[%clk 0:00:30.8]} 37. fxg4 {[%clk 0:00:17]} 37... Rxf1+ {[%clk
0:00:25.4]} 38. Qxf1 {[%clk 0:00:17.9]} 38... Rxh5 {[%clk 0:00:12.5]} 39. gxh5
{[%clk 0:00:18]} 39... Ne3 {[%clk 0:00:10.1]} 40. Qf8+ {[%clk 0:00:16.4]} 40...
Kh7 {[%clk 0:00:10]} 41. Qf3 {[%clk 0:00:15.7]} 41... Qh6 {[%clk 0:00:06.5]} 42.
Qe4+ {[%clk 0:00:13.6]} 42... Kh8 {[%clk 0:00:06.3]} 43. Qe8+ {[%clk 0:00:12.3]}
43... Kh7 {[%clk 0:00:06.4]} 44. Ne6 {[%clk 0:00:11.7]} 44... Qf6 {[%clk
0:00:01.5]} 45. Nf8+ {[%clk 0:00:09.5]} 45... Kh6 {[%clk 0:00:02.1]} 46. Qxe3+
{[%clk 0:00:09.5]} 46... Kxh5 {[%clk 0:00:01.6]} 47. Qe2+ {[%clk 0:00:08]} 47...
Kh6 {[%clk 0:00:01.9]} 48. Ne6 {[%clk 0:00:08.1]} 48... Qxc3 {[%clk 0:00:01.6]}
49. Qf1 {[%clk 0:00:05.5]} 1-0

[Event "*** SCC Grand Prix: Titled Tuesday Blitz"]
[Site "Chess.com"]
[Date "2020.06.02"]
[Round "8"]
[White "Vesper2018"]
[Black "DanielDardha2005"]
[Result "1/2-1/2"]
[WhiteElo "2390"]
[BlackElo "2668"]
[TimeControl "180+1"]
[EndTime "11:37:48 PDT"]
[Termination "Game drawn by repetition"]

1. e4 {[%clk 0:02:59.9]} 1... c5 {[%clk 0:02:53.2]} 2. Nc3 {[%clk 0:02:59.2]}
2... a6 {[%clk 0:02:51.1]} 3. g3 {[%clk 0:02:58.4]} 3... b5 {[%clk 0:02:50.3]}
4. Bg2 {[%clk 0:02:58.4]} 4... Bb7 {[%clk 0:02:46.8]} 5. Nge2 {[%clk 0:02:58.3]}
5... g6 {[%clk 0:02:45.4]} 6. d4 {[%clk 0:02:55.6]} 6... cxd4 {[%clk 0:02:45.1]}
7. Nxd4 {[%clk 0:02:55.2]} 7... Bg7 {[%clk 0:02:44.6]} 8. O-O {[%clk 0:02:55.1]}
8... d6 {[%clk 0:02:42]} 9. a4 {[%clk 0:02:47.3]} 9... bxa4 {[%clk 0:02:36.1]}
10. Nxa4 {[%clk 0:02:44.6]} 10... Nd7 {[%clk 0:02:35.2]} 11. Re1 {[%clk
0:02:38.9]} 11... Qc7 {[%clk 0:02:28.3]} 12. Nc3 {[%clk 0:02:33.2]} 12... Ngf6
{[%clk 0:02:24.6]} 13. Nd5 {[%clk 0:02:15.2]} 13... Qd8 {[%clk 0:02:21.5]} 14.
c4 {[%clk 0:02:12.5]} 14... O-O {[%clk 0:02:20.2]} 15. Nxf6+ {[%clk 0:02:00.7]}
15... Bxf6 {[%clk 0:02:17.7]} 16. e5 {[%clk 0:01:56]} 16... dxe5 {[%clk
0:02:15]} 17. Bxb7 {[%clk 0:01:54.6]} 17... exd4 {[%clk 0:02:15.2]} 18. Bxa8
{[%clk 0:01:54.2]} 18... Qxa8 {[%clk 0:02:16.1]} 19. f4 {[%clk 0:01:48.9]} 19...
Rc8 {[%clk 0:02:04.1]} 20. Qe2 {[%clk 0:01:29.9]} 20... Nc5 {[%clk 0:01:59.8]}
21. Ra3 {[%clk 0:01:25.9]} 21... Rb8 {[%clk 0:01:39.8]} 22. h4 {[%clk
0:01:14.1]} 22... d3 {[%clk 0:01:06.6]} 23. Qe3 {[%clk 0:00:51.5]} 23... Rd8
{[%clk 0:00:48.4]} 24. Kh2 {[%clk 0:00:41.7]} 24... Bd4 {[%clk 0:00:40.5]} 25.
Qd2 {[%clk 0:00:20.8]} 25... Qf3 {[%clk 0:00:29.6]} 26. Qg2 {[%clk 0:00:17]}
26... Qxg2+ {[%clk 0:00:27.1]} 27. Kxg2 {[%clk 0:00:17]} 27... d2 {[%clk
0:00:28]} 28. Bxd2 {[%clk 0:00:15.3]} 28... Bxb2 {[%clk 0:00:28.1]} 29. Bc1
{[%clk 0:00:11.8]} 29... Bxa3 {[%clk 0:00:27.2]} 30. Bxa3 {[%clk 0:00:11.7]}
30... Rd2+ {[%clk 0:00:16.7]} 31. Kh3 {[%clk 0:00:11]} 31... Nd3 {[%clk
0:00:16.5]} 32. Rxe7 {[%clk 0:00:07.8]} 32... h5 {[%clk 0:00:09.4]} 33. c5
{[%clk 0:00:05.9]} 33... Ra2 {[%clk 0:00:08.5]} 34. c6 {[%clk 0:00:05.2]} 34...
Rxa3 {[%clk 0:00:04.1]} 35. c7 {[%clk 0:00:05.3]} 35... Rc3 {[%clk 0:00:02.2]}
36. Re8+ {[%clk 0:00:05.3]} 36... Kg7 {[%clk 0:00:02.7]} 37. c8=Q {[%clk
0:00:05.1]} 37... Nxf4+ {[%clk 0:00:03.2]} 38. Kh2 {[%clk 0:00:05]} 38... Rxc8
{[%clk 0:00:04.1]} 39. Rxc8 {[%clk 0:00:04.7]} 39... Ne6 {[%clk 0:00:04.4]} 40.
Ra8 {[%clk 0:00:05]} 40... Nc5 {[%clk 0:00:03.3]} 41. Kg2 {[%clk 0:00:03.2]}
41... Kf6 {[%clk 0:00:03.1]} 42. Rc8 {[%clk 0:00:03]} 42... Ne6 {[%clk
0:00:02.5]} 43. Rc6 {[%clk 0:00:03.4]} 43... a5 {[%clk 0:00:02.9]} 44. Ra6
{[%clk 0:00:03.8]} 44... Kf5 {[%clk 0:00:03.8]} 45. Rxa5+ {[%clk 0:00:04.3]}
45... Kf6 {[%clk 0:00:04.7]} 46. Kf3 {[%clk 0:00:04.1]} 46... Nd4+ {[%clk
0:00:04.2]} 47. Ke4 {[%clk 0:00:04.7]} 47... Ne6 {[%clk 0:00:04.3]} 48. Ra6
{[%clk 0:00:04.5]} 48... Kg7 {[%clk 0:00:02.9]} 49. Rb6 {[%clk 0:00:04.9]} 49...
Nc5+ {[%clk 0:00:02.1]} 50. Ke5 {[%clk 0:00:04.6]} 50... Ne6 {[%clk 0:00:03]}
51. Ke4 {[%clk 0:00:04.3]} 51... Nc5+ {[%clk 0:00:02.8]} 52. Kf3 {[%clk
0:00:04.7]} 52... Ne6 {[%clk 0:00:02.5]} 53. Rd6 {[%clk 0:00:04.8]} 53... Nc5
{[%clk 0:00:02.5]} 54. Rc6 {[%clk 0:00:04.5]} 54... Ne6 {[%clk 0:00:02.5]} 55.
Rb6 {[%clk 0:00:05]} 55... Nc5 {[%clk 0:00:02.4]} 56. g4 {[%clk 0:00:04.3]}
56... hxg4+ {[%clk 0:00:02.3]} 57. Kxg4 {[%clk 0:00:04.8]} 57... Nd7 {[%clk
0:00:02.4]} 58. Rb7 {[%clk 0:00:04.8]} 58... Nf6+ {[%clk 0:00:02.5]} 59. Kf4
{[%clk 0:00:04.8]} 59... Nh5+ {[%clk 0:00:02.3]} 60. Kg4 {[%clk 0:00:04.9]}
60... Nf6+ {[%clk 0:00:02.6]} 61. Kf4 {[%clk 0:00:05.4]} 61... Nh5+ {[%clk
0:00:02.8]} 62. Kg4 {[%clk 0:00:05.9]} 62... Nf6+ {[%clk 0:00:02.8]} 1/2-1/2

[Event "*** SCC Grand Prix: Titled Tuesday Blitz"]
[Site "Chess.com"]
[Date "2020.06.02"]
[Round "8"]
[White "MomchilPetkov"]
[Black "Semen_Khanin"]
[Result "0-1"]
[WhiteElo "2538"]
[BlackElo "2712"]
[TimeControl "180+1"]
[EndTime "11:37:51 PDT"]
[Termination "Semen_Khanin won by resignation"]

1. e4 {[%clk 0:03:00.9]} 1... c5 {[%clk 0:02:59.6]} 2. Nf3 {[%clk 0:03:00.5]}
2... e6 {[%clk 0:03:00.2]} 3. d4 {[%clk 0:03:00.7]} 3... cxd4 {[%clk 0:03:01.1]}
4. Nxd4 {[%clk 0:03:01.4]} 4... Nc6 {[%clk 0:03:02]} 5. Nb5 {[%clk 0:03:01.4]}
5... d6 {[%clk 0:03:01.6]} 6. c4 {[%clk 0:03:01.2]} 6... Nf6 {[%clk 0:02:59.9]}
7. N1c3 {[%clk 0:03:00.4]} 7... a6 {[%clk 0:03:00.2]} 8. Na3 {[%clk 0:03:00.6]}
8... Be7 {[%clk 0:02:57.5]} 9. Be2 {[%clk 0:03:00.6]} 9... b6 {[%clk 0:02:57.2]}
10. O-O {[%clk 0:02:59.6]} 10... Bb7 {[%clk 0:02:57.1]} 11. Be3 {[%clk
0:02:59.5]} 11... Ne5 {[%clk 0:02:56.9]} 12. f3 {[%clk 0:02:59.3]} 12... O-O
{[%clk 0:02:54.2]} 13. Rc1 {[%clk 0:02:53.8]} 13... Qc7 {[%clk 0:02:54]} 14. Qd2
{[%clk 0:02:44.6]} 14... Rac8 {[%clk 0:02:52.8]} 15. Rfd1 {[%clk 0:02:43.8]}
15... Rfe8 {[%clk 0:02:52]} 16. Bf1 {[%clk 0:02:43.1]} 16... Ng6 {[%clk
0:02:40.9]} 17. Qf2 {[%clk 0:02:41.8]} 17... Nd7 {[%clk 0:02:39.9]} 18. Nc2
{[%clk 0:02:34.5]} 18... Qb8 {[%clk 0:02:21.2]} 19. Nd4 {[%clk 0:02:25.8]} 19...
h5 {[%clk 0:02:05.3]} 20. g3 {[%clk 0:02:16.9]} 20... h4 {[%clk 0:01:59.5]} 21.
b3 {[%clk 0:02:13.9]} 21... hxg3 {[%clk 0:01:57.3]} 22. hxg3 {[%clk 0:02:14.8]}
22... d5 {[%clk 0:01:55.8]} 23. exd5 {[%clk 0:02:04]} 23... exd5 {[%clk
0:01:52]} 24. Nf5 {[%clk 0:02:04]} 24... Ba3 {[%clk 0:01:33.8]} 25. Rc2 {[%clk
0:01:58.2]} 25... dxc4 {[%clk 0:01:27.6]} 26. Rxd7 {[%clk 0:01:48.8]} 26... cxb3
{[%clk 0:01:26.2]} 27. axb3 {[%clk 0:01:47.4]} 27... Ne5 {[%clk 0:01:26.4]} 28.
Rxb7 {[%clk 0:01:41.6]} 28... Qxb7 {[%clk 0:01:25.4]} 29. Bg2 {[%clk 0:01:31.8]}
29... Nd3 {[%clk 0:01:20.4]} 30. Qd2 {[%clk 0:01:07.1]} 30... Rcd8 {[%clk
0:01:06.8]} 31. Bd4 {[%clk 0:00:57.7]} 31... Rxd4 {[%clk 0:00:18.7]} 32. Nxd4
{[%clk 0:00:54.2]} 32... Ne1 {[%clk 0:00:18.9]} 33. Ra2 {[%clk 0:00:47.3]} 33...
Bc5 {[%clk 0:00:18.9]} 34. Ne2 {[%clk 0:00:34.5]} 34... Nxf3+ {[%clk 0:00:16.9]}
35. Bxf3 {[%clk 0:00:28.3]} 35... Qxf3 {[%clk 0:00:17.3]} 36. b4 {[%clk
0:00:16.8]} 36... Rxe2 {[%clk 0:00:10.3]} 37. Qxe2 {[%clk 0:00:10.7]} 37...
Bxd4+ {[%clk 0:00:08.9]} 38. Kh2 {[%clk 0:00:10.6]} 38... Qf5 {[%clk 0:00:07.3]}
39. Rd2 {[%clk 0:00:08.2]} 39... Bf6 {[%clk 0:00:06.8]} 40. Rd3 {[%clk
0:00:06.7]} 40... g6 {[%clk 0:00:06.3]} 41. Kg2 {[%clk 0:00:07]} 41... Kg7
{[%clk 0:00:06.2]} 42. Rf3 {[%clk 0:00:07.4]} 42... Qg5 {[%clk 0:00:06.2]} 43.
Qxa6 {[%clk 0:00:06.6]} 43... Qd2+ {[%clk 0:00:06.4]} 44. Rf2 {[%clk 0:00:06.9]}
44... Qxb4 {[%clk 0:00:07.3]} 45. Qd3 {[%clk 0:00:06.2]} 45... b5 {[%clk
0:00:06.6]} 46. Qf3 {[%clk 0:00:06.4]} 46... Qd6 {[%clk 0:00:04.4]} 47. Re2
{[%clk 0:00:06.3]} 47... b4 {[%clk 0:00:04.2]} 48. g4 {[%clk 0:00:06.6]} 48...
Bc3 {[%clk 0:00:03.5]} 49. Rf2 {[%clk 0:00:06.3]} 49... Qe6 {[%clk 0:00:03.9]}
50. g5 {[%clk 0:00:04]} 50... Qc4 {[%clk 0:00:03.1]} 51. Qg3 {[%clk 0:00:02.7]}
51... b3 {[%clk 0:00:03.1]} 52. Qb8 {[%clk 0:00:02.4]} 52... b2 {[%clk
0:00:02.9]} 53. Rxb2 {[%clk 0:00:02.6]} 53... Bxb2 {[%clk 0:00:02.7]} 54. Qxb2+
{[%clk 0:00:03.5]} 54... Kg8 {[%clk 0:00:03.1]} 55. Qf6 {[%clk 0:00:04.1]} 55...
Qe6 {[%clk 0:00:02.6]} 56. Kg3 {[%clk 0:00:05]} 56... Qxf6 {[%clk 0:00:02]} 57.
gxf6 {[%clk 0:00:05.9]} 57... Kh7 {[%clk 0:00:02.8]} 58. Kg4 {[%clk 0:00:06.8]}
58... Kh6 {[%clk 0:00:03.7]} 59. Kf4 {[%clk 0:00:07]} 59... g5+ {[%clk
0:00:04.2]} 60. Kg4 {[%clk 0:00:07.2]} 60... Kg6 {[%clk 0:00:04.6]} 61. Kg3
{[%clk 0:00:07.8]} 61... Kxf6 {[%clk 0:00:05.5]} 62. Kf3 {[%clk 0:00:08.7]}
62... Kg6 {[%clk 0:00:06.4]} 63. Kg3 {[%clk 0:00:09.6]} 63... f5 {[%clk
0:00:07.3]} 0-1

[Event "*** SCC Grand Prix: Titled Tuesday Blitz"]
[Site "Chess.com"]
[Date "2020.06.02"]
[Round "8"]
[White "MightyGMpretender"]
[Black "Makswolf200817"]
[Result "0-1"]
[WhiteElo "2561"]
[BlackElo "2403"]
[TimeControl "180+1"]
[EndTime "11:37:54 PDT"]
[Termination "Makswolf200817 won by resignation"]

1. Nf3 {[%clk 0:02:56.8]} 1... d5 {[%clk 0:02:59.3]} 2. d4 {[%clk 0:02:53.7]}
2... Bf5 {[%clk 0:02:54.4]} 3. c4 {[%clk 0:02:48.9]} 3... e6 {[%clk 0:02:49]} 4.
Nc3 {[%clk 0:02:49.3]} 4... Nf6 {[%clk 0:02:42.4]} 5. Qb3 {[%clk 0:02:49.6]}
5... Nc6 {[%clk 0:02:41.3]} 6. a3 {[%clk 0:02:37.3]} 6... dxc4 {[%clk
0:02:15.5]} 7. Qxc4 {[%clk 0:02:24.1]} 7... Be7 {[%clk 0:02:12.1]} 8. g3 {[%clk
0:02:18.7]} 8... O-O {[%clk 0:02:11.6]} 9. Bg2 {[%clk 0:02:19.2]} 9... Na5
{[%clk 0:02:10.5]} 10. Qa4 {[%clk 0:02:13.7]} 10... c5 {[%clk 0:01:57.7]} 11.
O-O {[%clk 0:02:06.2]} 11... Nc6 {[%clk 0:01:55]} 12. dxc5 {[%clk 0:01:49.2]}
12... Bxc5 {[%clk 0:01:54.4]} 13. Rd1 {[%clk 0:01:47]} 13... Qe7 {[%clk
0:01:49.3]} 14. Bg5 {[%clk 0:01:42.2]} 14... h6 {[%clk 0:01:45.8]} 15. Bxf6
{[%clk 0:01:29.4]} 15... Qxf6 {[%clk 0:01:46.7]} 16. Rd7 {[%clk 0:01:27]} 16...
Rab8 {[%clk 0:01:40.4]} 17. Rad1 {[%clk 0:01:16.2]} 17... e5 {[%clk 0:01:34.2]}
18. R7d2 {[%clk 0:00:54.6]} 18... Rfd8 {[%clk 0:01:25.4]} 19. Nd5 {[%clk
0:00:54.2]} 19... Qe6 {[%clk 0:01:22.9]} 20. Nh4 {[%clk 0:00:46]} 20... Bh7
{[%clk 0:01:20.4]} 21. e3 {[%clk 0:00:28.4]} 21... e4 {[%clk 0:01:03]} 22. Bf1
{[%clk 0:00:21.6]} 22... g5 {[%clk 0:00:59.8]} 23. Ng2 {[%clk 0:00:17.6]} 23...
Ne5 {[%clk 0:00:59.5]} 24. Ne1 {[%clk 0:00:14.3]} 24... Kg7 {[%clk 0:00:49.4]}
25. b4 {[%clk 0:00:12.6]} 25... Bf8 {[%clk 0:00:43.8]} 26. Qb3 {[%clk
0:00:12.3]} 26... Bf5 {[%clk 0:00:38.4]} 27. Qb2 {[%clk 0:00:12.2]} 27... Kg8
{[%clk 0:00:34.3]} 28. Nc7 {[%clk 0:00:12]} 28... Rxd2 {[%clk 0:00:30.3]} 29.
Rxd2 {[%clk 0:00:12.3]} 29... Qe7 {[%clk 0:00:27.1]} 30. Nd5 {[%clk 0:00:12.4]}
30... Qe6 {[%clk 0:00:27]} 31. Nc7 {[%clk 0:00:12.6]} 31... Qe7 {[%clk
0:00:24.1]} 32. Nd5 {[%clk 0:00:13]} 32... Qe6 {[%clk 0:00:24.4]} 33. Qd4 {[%clk
0:00:10]} 33... Nc6 {[%clk 0:00:18.9]} 34. Qb2 {[%clk 0:00:08.9]} 34... Bg7
{[%clk 0:00:18.6]} 35. Qb1 {[%clk 0:00:07.4]} 35... Rd8 {[%clk 0:00:18.4]} 36.
Qd1 {[%clk 0:00:07.9]} 36... Kh7 {[%clk 0:00:16.5]} 37. Bc4 {[%clk 0:00:07.1]}
37... Qe5 {[%clk 0:00:16.1]} 38. Be2 {[%clk 0:00:05.9]} 38... a6 {[%clk
0:00:15.1]} 39. b5 {[%clk 0:00:03.9]} 39... axb5 {[%clk 0:00:14.9]} 40. Bxb5
{[%clk 0:00:04.8]} 40... Qe6 {[%clk 0:00:13.4]} 41. Be2 {[%clk 0:00:04.8]} 41...
Ne5 {[%clk 0:00:12.2]} 42. a4 {[%clk 0:00:03]} 42... Kg6 {[%clk 0:00:10.5]} 43.
Nc7 {[%clk 0:00:03.3]} 43... Rxd2 {[%clk 0:00:10.1]} 44. Qxd2 {[%clk 0:00:04.2]}
44... Qc6 {[%clk 0:00:10]} 45. Nb5 {[%clk 0:00:04.2]} 45... Bf6 {[%clk
0:00:09.2]} 46. Nd4 {[%clk 0:00:04.5]} 46... Qxa4 {[%clk 0:00:08.5]} 47. Nxf5
{[%clk 0:00:04.8]} 47... Kxf5 {[%clk 0:00:09.4]} 48. Bd1 {[%clk 0:00:04.1]}
48... Qd7 {[%clk 0:00:08.6]} 49. Qxd7+ {[%clk 0:00:03.8]} 49... Nxd7 {[%clk
0:00:09.5]} 50. Bc2 {[%clk 0:00:04.3]} 50... Nc5 {[%clk 0:00:09.6]} 51. f3
{[%clk 0:00:04.6]} 51... Ke5 {[%clk 0:00:09.4]} 52. f4+ {[%clk 0:00:04.5]} 52...
gxf4 {[%clk 0:00:09]} 53. exf4+ {[%clk 0:00:05.2]} 53... Kf5 {[%clk 0:00:09.3]}
54. Kf2 {[%clk 0:00:05.7]} 54... Bd4+ {[%clk 0:00:09.5]} 55. Ke2 {[%clk
0:00:06.4]} 55... b5 {[%clk 0:00:10]} 56. Ng2 {[%clk 0:00:06.9]} 56... b4 {[%clk
0:00:09.6]} 57. Nh4+ {[%clk 0:00:07.2]} 57... Kg4 {[%clk 0:00:09.3]} 58. Ng2
{[%clk 0:00:06.9]} 58... Kh3 {[%clk 0:00:09.2]} 59. f5 {[%clk 0:00:05.6]} 59...
Kxg2 {[%clk 0:00:08.7]} 60. g4 {[%clk 0:00:05.4]} 60... Kxh2 {[%clk 0:00:08.7]}
61. Ba4 {[%clk 0:00:04.9]} 61... b3 {[%clk 0:00:07.7]} 0-1